[Event "Live Chess"]
[Site "Chess.com"]
[Date "2023.05.21"]
[Round "-"]
[White "jimwad"]
[Black "Larchikov"]
[Result "0-1"]
[WhiteElo "1227"]
[BlackElo "2068"]
[TimeControl "300"]
[EndTime "2:02:19 PDT"]
[Termination "Larchikov won on time"]

1. d4 {[%clk 0:04:57.1]} 1... Nf6 {[%clk 0:04:58.3]} 2. c4 {[%clk 0:04:56]} 2...
g6 {[%clk 0:04:57.9]} 3. Nc3 {[%clk 0:04:54.9]} 3... d5 {[%clk 0:04:56.9]} 4. c5
{[%clk 0:04:53.6]} 4... Bg7 {[%clk 0:04:55.7]} 5. Nf3 {[%clk 0:04:52]} 5... O-O
{[%clk 0:04:54.7]} 6. e3 {[%clk 0:04:49.7]} 6... b6 {[%clk 0:04:53.9]} 7. cxb6
{[%clk 0:04:42.8]} 7... axb6 {[%clk 0:04:53.8]} 8. Bd3 {[%clk 0:04:40.5]} 8...
Ba6 {[%clk 0:04:51.5]} 9. Bxa6 {[%clk 0:04:38.7]} 9... Nxa6 {[%clk 0:04:51.4]}
10. O-O {[%clk 0:04:37.5]} 10... c5 {[%clk 0:04:50.2]} 11. dxc5 {[%clk
0:04:36.1]} 11... bxc5 {[%clk 0:04:50.1]} 12. a3 {[%clk 0:04:27.6]} 12... c4
{[%clk 0:04:47.2]} 13. Rb1 {[%clk 0:04:22.4]} 13... Nc5 {[%clk 0:04:44.4]} 14.
Nd4 {[%clk 0:04:08.9]} 14... Nd3 {[%clk 0:04:39.4]} 15. b3 {[%clk 0:04:02.4]}
15... e5 {[%clk 0:04:36.2]} 16. Ndb5 {[%clk 0:03:54.9]} 16... Rc8 {[%clk
0:04:02.7]} 17. bxc4 {[%clk 0:03:52.2]} 17... Rxc4 {[%clk 0:03:51.4]} 18. Qxd3
{[%clk 0:03:47.3]} 18... e4 {[%clk 0:03:44.5]} 19. Qe2 {[%clk 0:03:41.3]} 19...
Ne8 {[%clk 0:03:36.2]} 20. Bb2 {[%clk 0:03:39.8]} 20... Nc7 {[%clk 0:03:06.3]}
21. Nxc7 {[%clk 0:03:38]} 21... Rxc7 {[%clk 0:02:59.7]} 22. Nb5 {[%clk
0:03:33.4]} 22... Rc5 {[%clk 0:02:55.1]} 23. Bxg7 {[%clk 0:03:30.9]} 23... Kxg7
{[%clk 0:02:53.1]} 24. Qb2+ {[%clk 0:03:25.8]} 24... Kg8 {[%clk 0:02:51.1]} 25.
Nd4 {[%clk 0:03:24]} 25... Qd6 {[%clk 0:02:45.7]} 26. Qb6 {[%clk 0:03:13.5]}
26... Qe7 {[%clk 0:02:43.7]} 27. a4 {[%clk 0:03:05.3]} 27... Ra8 {[%clk
0:02:41.2]} 28. Ra1 {[%clk 0:02:57.1]} 28... Rca5 {[%clk 0:02:18.6]} 29. Nc6
{[%clk 0:02:54.2]} 29... Qd6 {[%clk 0:02:16.1]} 30. Rfb1 {[%clk 0:02:42.6]}
30... R5a6 {[%clk 0:02:10.3]} 31. Qb7 {[%clk 0:01:56.9]} 31... Qxc6 {[%clk
0:02:05.8]} 32. Qxc6 {[%clk 0:01:55.7]} 32... Rxc6 {[%clk 0:02:05.7]} 33. a5
{[%clk 0:01:53.7]} 33... Kg7 {[%clk 0:01:52.6]} 34. h3 {[%clk 0:01:45.9]} 34...
Kf6 {[%clk 0:01:50.6]} 35. Rb5 {[%clk 0:01:33.3]} 35... Ke6 {[%clk 0:01:47.5]}
36. Kh2 {[%clk 0:01:21.3]} 36... Ke5 {[%clk 0:01:08]} 37. Rab1 {[%clk
0:01:18.3]} 37... h6 {[%clk 0:00:55]} 38. Rb6 {[%clk 0:01:15.1]} 38... Rxb6
{[%clk 0:00:53.5]} 39. axb6 {[%clk 0:01:13.9]} 39... Rb8 {[%clk 0:00:52.5]} 40.
b7 {[%clk 0:01:12.8]} 40... Kd6 {[%clk 0:00:50]} 41. Rb6+ {[%clk 0:01:09.9]}
41... Kc7 {[%clk 0:00:46.4]} 42. Rf6 {[%clk 0:01:08.9]} 42... Rf8 {[%clk
0:00:44.7]} 43. b8=Q+ {[%clk 0:01:01.8]} 43... Kxb8 {[%clk 0:00:42.1]} 44. Rd6
{[%clk 0:01:00.6]} 44... Kc7 {[%clk 0:00:37.3]} 45. Rxd5 {[%clk 0:00:59.5]}
45... Re8 {[%clk 0:00:35]} 46. Kg3 {[%clk 0:00:47.5]} 46... Kc6 {[%clk
0:00:33.9]} 47. Rd4 {[%clk 0:00:45.8]} 47... f5 {[%clk 0:00:32.1]} 48. Kf4
{[%clk 0:00:44.1]} 48... Re6 {[%clk 0:00:30.2]} 49. g4 {[%clk 0:00:42.3]} 49...
Rf6 {[%clk 0:00:23.2]} 50. g5 {[%clk 0:00:39.1]} 50... hxg5+ {[%clk 0:00:21.4]}
51. Kxg5 {[%clk 0:00:38.2]} 51... Re6 {[%clk 0:00:21]} 52. h4 {[%clk 0:00:30.8]}
52... Kc7 {[%clk 0:00:19.3]} 53. h5 {[%clk 0:00:29.6]} 53... gxh5 {[%clk
0:00:18.5]} 54. Kxh5 {[%clk 0:00:28.8]} 54... Re5 {[%clk 0:00:17.7]} 55. Kg5
{[%clk 0:00:27.6]} 55... Kc6 {[%clk 0:00:17.2]} 56. Kf4 {[%clk 0:00:26.4]} 56...
Ra5 {[%clk 0:00:16.7]} 57. f3 {[%clk 0:00:23.2]} 57... exf3 {[%clk 0:00:14]} 58.
Kxf3 {[%clk 0:00:21.4]} 58... Kc5 {[%clk 0:00:13.3]} 59. Kf4 {[%clk 0:00:20.2]}
59... Ra3 {[%clk 0:00:11.9]} 60. Kxf5 {[%clk 0:00:19]} 60... Rxe3 {[%clk
0:00:11.4]} 61. Rd3 {[%clk 0:00:14.9]} 61... Rxd3 {[%clk 0:00:10.4]} 62. Ke5
{[%clk 0:00:13.6]} 62... Re3+ {[%clk 0:00:09.2]} 63. Kf5 {[%clk 0:00:12.6]}
63... Kd4 {[%clk 0:00:09.1]} 64. Kf4 {[%clk 0:00:11.6]} 64... Re4+ {[%clk
0:00:09]} 65. Kf5 {[%clk 0:00:10.6]} 65... Kd5 {[%clk 0:00:08.9]} 66. Kf6 {[%clk
0:00:09.3]} 66... Rd4 {[%clk 0:00:08.8]} 67. Kf5 {[%clk 0:00:07.6]} 67... Re4
{[%clk 0:00:08.7]} 68. Kf6 {[%clk 0:00:06.6]} 68... Re5 {[%clk 0:00:08.6]} 69.
Kf7 {[%clk 0:00:03.8]} 69... Re6 {[%clk 0:00:08.5]} 70. Kg7 {[%clk 0:00:02.9]}
70... Kd6 {[%clk 0:00:08.4]} 71. Kf7 {[%clk 0:00:02]} 71... Ke5 {[%clk 0:00:08]}
72. Kg7 {[%clk 0:00:01]} 72... Rc6 {[%clk 0:00:07.7]} 73. Kf7 {[%clk 0:00:00.2]}
73... Rc7+ {[%clk 0:00:07.4]} 0-1

[Event "Live Chess"]
[Site "Chess.com"]
[Date "2023.05.21"]
[Round "-"]
[White "Singapourfeuj"]
[Black "Pandreq"]
[Result "1-0"]
[WhiteElo "2180"]
[BlackElo "1255"]
[TimeControl "300"]
[EndTime "2:02:22 PDT"]
[Termination "Singapourfeuj won by resignation"]

1. d4 {[%clk 0:04:59.5]} 1... d5 {[%clk 0:04:58.2]} 2. c4 {[%clk 0:04:58.1]}
2... c6 {[%clk 0:04:56.9]} 3. Nf3 {[%clk 0:04:57.3]} 3... Nf6 {[%clk 0:04:55.6]}
4. Nbd2 {[%clk 0:04:56]} 4... Bf5 {[%clk 0:04:49.9]} 5. g3 {[%clk 0:04:54]} 5...
e6 {[%clk 0:04:47.6]} 6. Bg2 {[%clk 0:04:53.2]} 6... Nbd7 {[%clk 0:04:42.1]} 7.
O-O {[%clk 0:04:52]} 7... Nb6 {[%clk 0:04:19.7]} 8. b3 {[%clk 0:04:47.2]} 8...
Ne4 {[%clk 0:04:12.3]} 9. Bb2 {[%clk 0:04:45.6]} 9... Bb4 {[%clk 0:04:00.2]} 10.
a3 {[%clk 0:04:41.9]} 10... Bxd2 {[%clk 0:03:54.9]} 11. Nxd2 {[%clk 0:04:40.8]}
11... Nxd2 {[%clk 0:03:48]} 12. Qxd2 {[%clk 0:04:40]} 12... O-O {[%clk
0:03:43.7]} 13. c5 {[%clk 0:04:37.4]} 13... Nd7 {[%clk 0:03:40.8]} 14. h4 {[%clk
0:04:34.6]} 14... b6 {[%clk 0:03:38.9]} 15. b4 {[%clk 0:04:32.2]} 15... Nf6
{[%clk 0:03:33.3]} 16. Rab1 {[%clk 0:04:30.5]} 16... Ne4 {[%clk 0:03:30.6]} 17.
Qf4 {[%clk 0:04:27.1]} 17... Qb8 {[%clk 0:03:14.2]} 18. Qxb8 {[%clk 0:04:20.2]}
18... Raxb8 {[%clk 0:03:13.1]} 19. Rbc1 {[%clk 0:04:18.8]} 19... Nd2 {[%clk
0:03:05]} 20. Rfd1 {[%clk 0:04:17.1]} 20... Nc4 {[%clk 0:02:50.2]} 21. Rxc4
{[%clk 0:04:15.7]} 21... dxc4 {[%clk 0:02:48.2]} 22. Bxc6 {[%clk 0:04:14.5]}
22... bxc5 {[%clk 0:02:40.8]} 23. dxc5 {[%clk 0:04:11.7]} 23... Bc2 {[%clk
0:02:35.9]} 24. Rc1 {[%clk 0:04:08.7]} 24... Bb3 {[%clk 0:02:34.3]} 25. Be5
{[%clk 0:04:04.9]} 25... Rbd8 {[%clk 0:02:29.7]} 26. Bb7 {[%clk 0:03:59.3]}
26... Rd1+ {[%clk 0:02:24.3]} 27. Rxd1 {[%clk 0:03:57.4]} 27... Bxd1 {[%clk
0:02:23.4]} 28. c6 {[%clk 0:03:56.5]} 28... Bxe2 {[%clk 0:02:12.1]} 29. c7
{[%clk 0:03:55.3]} 29... c3 {[%clk 0:02:00.5]} 30. Bxc3 {[%clk 0:03:53.3]} 30...
Bb5 {[%clk 0:01:45.9]} 31. c8=Q {[%clk 0:03:47.3]} 31... Rxc8 {[%clk 0:01:45]}
32. Bxc8 {[%clk 0:03:46.5]} 32... a6 {[%clk 0:01:42.1]} 33. a4 {[%clk
0:03:43.3]} 33... Bc4 {[%clk 0:01:36.5]} 34. f4 {[%clk 0:03:39.7]} 34... f6
{[%clk 0:01:34.2]} 35. Kf2 {[%clk 0:03:38.6]} 35... Kf8 {[%clk 0:01:33.1]} 36.
Ke3 {[%clk 0:03:37.6]} 36... Ke7 {[%clk 0:01:30.1]} 37. Kd4 {[%clk 0:03:36.7]}
37... Be2 {[%clk 0:01:24.7]} 38. Kc5 {[%clk 0:03:35.5]} 38... Bd1 {[%clk
0:01:14.8]} 39. Bxa6 {[%clk 0:03:31.8]} 39... Bxa4 {[%clk 0:01:13.6]} 40. b5
{[%clk 0:03:31]} 40... Kd7 {[%clk 0:01:09.4]} 41. b6 {[%clk 0:03:29.9]} 41...
Bc6 {[%clk 0:01:06.1]} 42. Ba5 {[%clk 0:03:28]} 42... Bd5 {[%clk 0:00:57.9]} 43.
b7 {[%clk 0:03:26]} 43... Bxb7 {[%clk 0:00:55]} 44. Bxb7 {[%clk 0:03:24.5]}
44... e5 {[%clk 0:00:53.1]} 45. fxe5 {[%clk 0:03:22.8]} 45... fxe5 {[%clk
0:00:52.4]} 46. Kd5 {[%clk 0:03:22]} 46... Ke7 {[%clk 0:00:48.9]} 47. Kxe5
{[%clk 0:03:20.8]} 1-0

[Event "Live Chess"]
[Site "Chess.com"]
[Date "2023.05.21"]
[Round "-"]
[White "Mugzwang"]
[Black "Tushinskiy"]
[Result "0-1"]
[WhiteElo "1562"]
[BlackElo "2159"]
[TimeControl "300"]
[EndTime "2:02:25 PDT"]
[Termination "Tushinskiy won by checkmate"]

1. Nf3 {[%clk 0:04:56.7]} 1... d5 {[%clk 0:04:59.1]} 2. c4 {[%clk 0:04:55.5]}
2... c6 {[%clk 0:04:59]} 3. g3 {[%clk 0:04:53.7]} 3... Nf6 {[%clk 0:04:58.2]} 4.
Bg2 {[%clk 0:04:53.3]} 4... e6 {[%clk 0:04:57.6]} 5. O-O {[%clk 0:04:52]} 5...
Bd6 {[%clk 0:04:57.1]} 6. b3 {[%clk 0:04:44.3]} 6... Nbd7 {[%clk 0:04:56]} 7.
Bb2 {[%clk 0:04:43.3]} 7... Qe7 {[%clk 0:04:55.4]} 8. Nc3 {[%clk 0:04:30.8]}
8... O-O {[%clk 0:04:53.6]} 9. d3 {[%clk 0:04:24.3]} 9... e5 {[%clk 0:04:52.1]}
10. cxd5 {[%clk 0:04:06.3]} 10... cxd5 {[%clk 0:04:52]} 11. Rc1 {[%clk
0:03:59.1]} 11... a6 {[%clk 0:04:49.7]} 12. Qc2 {[%clk 0:03:55.9]} 12... d4
{[%clk 0:04:47.7]} 13. Nb1 {[%clk 0:03:40.8]} 13... Rb8 {[%clk 0:04:41.6]} 14.
Nbd2 {[%clk 0:03:37.8]} 14... b5 {[%clk 0:04:39]} 15. Ng5 {[%clk 0:03:15]} 15...
Nc5 {[%clk 0:04:30.6]} 16. Nge4 {[%clk 0:03:08.2]} 16... Ncxe4 {[%clk 0:04:27]}
17. Nxe4 {[%clk 0:03:07]} 17... Nxe4 {[%clk 0:04:25.7]} 18. Bxe4 {[%clk
0:03:03.9]} 18... Bh3 {[%clk 0:04:23.3]} 19. Rfe1 {[%clk 0:03:00.3]} 19... f5
{[%clk 0:04:21.7]} 20. Bg2 {[%clk 0:02:58.9]} 20... Bxg2 {[%clk 0:04:19.9]} 21.
Kxg2 {[%clk 0:02:57.3]} 21... f4 {[%clk 0:04:19.3]} 22. Qc6 {[%clk 0:02:54.8]}
22... h6 {[%clk 0:04:10.8]} 23. Qd5+ {[%clk 0:02:49.9]} 23... Kh8 {[%clk
0:04:09.3]} 24. Rc6 {[%clk 0:02:49.4]} 24... Rf6 {[%clk 0:04:08.2]} 25. Rec1
{[%clk 0:02:29.9]} 25... Rbf8 {[%clk 0:03:57.9]} 26. Rxa6 {[%clk 0:02:18.8]}
26... fxg3 {[%clk 0:03:52.6]} 27. f3 {[%clk 0:02:10.9]} 27... gxh2 {[%clk
0:03:50.6]} 28. Rcc6 {[%clk 0:02:02.2]} 28... Rg6+ {[%clk 0:03:48.9]} 29. Kxh2
{[%clk 0:01:59.1]} 29... Qh4# {[%clk 0:03:47.1]} 0-1

[Event "Live Chess"]
[Site "Chess.com"]
[Date "2023.05.21"]
[Round "-"]
[White "Mikhail_Golubev"]
[Black "FailsGambits"]
[Result "1-0"]
[WhiteElo "2467"]
[BlackElo "1335"]
[TimeControl "300"]
[EndTime "2:02:28 PDT"]
[Termination "Mikhail_Golubev won by checkmate"]

1. a3 {[%clk 0:04:50.9]} 1... d5 {[%clk 0:04:58.4]} 2. h3 {[%clk 0:04:49.3]}
2... e5 {[%clk 0:04:57]} 3. e3 {[%clk 0:04:46.8]} 3... f5 {[%clk 0:04:55.7]} 4.
d3 {[%clk 0:04:44.7]} 4... Nf6 {[%clk 0:04:54.3]} 5. Nf3 {[%clk 0:04:42]} 5...
Bd6 {[%clk 0:04:47.1]} 6. Be2 {[%clk 0:04:29.6]} 6... Be6 {[%clk 0:04:44]} 7. b3
{[%clk 0:04:20]} 7... Nbd7 {[%clk 0:04:39.4]} 8. Bb2 {[%clk 0:04:19]} 8... Qe7
{[%clk 0:04:30.4]} 9. Nbd2 {[%clk 0:04:04.6]} 9... O-O-O {[%clk 0:04:20.3]} 10.
d4 {[%clk 0:04:01.7]} 10... e4 {[%clk 0:04:18.5]} 11. Ne5 {[%clk 0:03:57.3]}
11... Bxe5 {[%clk 0:03:59]} 12. dxe5 {[%clk 0:03:57.2]} 12... Ne8 {[%clk
0:03:58.4]} 13. c4 {[%clk 0:03:54.4]} 13... dxc4 {[%clk 0:03:43.6]} 14. b4
{[%clk 0:03:40.4]} 14... Nb6 {[%clk 0:03:06.7]} 15. Bd4 {[%clk 0:03:27]} 15...
Bf7 {[%clk 0:02:43.9]} 16. Qc2 {[%clk 0:03:13.9]} 16... c6 {[%clk 0:02:19.8]}
17. O-O {[%clk 0:02:56.5]} 17... Nc7 {[%clk 0:02:02.6]} 18. a4 {[%clk
0:02:47.3]} 18... Qxb4 {[%clk 0:01:42.3]} 19. a5 {[%clk 0:02:42]} 19... Nbd5
{[%clk 0:01:15.5]} 20. Rfb1 {[%clk 0:02:39.6]} 20... Qe7 {[%clk 0:01:06.3]} 21.
Nxc4 {[%clk 0:02:38.7]} 21... Na6 {[%clk 0:00:38.2]} 22. Nd6+ {[%clk 0:02:34.3]}
22... Rxd6 {[%clk 0:00:35.6]} 23. exd6 {[%clk 0:02:32.1]} 23... Qxd6 {[%clk
0:00:35.5]} 24. Bxa6 {[%clk 0:02:27.1]} 24... bxa6 {[%clk 0:00:32.4]} 25. Rb2
{[%clk 0:02:07.9]} 25... Nb4 {[%clk 0:00:16.9]} 26. Rxb4 {[%clk 0:01:59.7]}
26... Qxb4 {[%clk 0:00:15.2]} 27. Qxc6+ {[%clk 0:01:58.8]} 27... Kd8 {[%clk
0:00:14.8]} 28. Bxg7 {[%clk 0:01:56.8]} 28... Be8 {[%clk 0:00:10.8]} 29. Bf6+
{[%clk 0:01:54.9]} 29... Qe7 {[%clk 0:00:06.3]} 30. Rd1+ {[%clk 0:01:53.2]}
30... Bd7 {[%clk 0:00:04.5]} 31. Qxd7# {[%clk 0:01:52.2]} 1-0

[Event "Live Chess"]
[Site "Chess.com"]
[Date "2023.05.21"]
[Round "-"]
[White "RamsayFlayer"]
[Black "yeetpizza74"]
[Result "1-0"]
[WhiteElo "1969"]
[BlackElo "465"]
[TimeControl "300"]
[EndTime "2:02:31 PDT"]
[Termination "RamsayFlayer won by checkmate"]

1. e4 {[%clk 0:04:55.8]} 1... c6 {[%clk 0:04:57.5]} 2. d4 {[%clk 0:04:54.5]}
2... d5 {[%clk 0:04:56.4]} 3. Nc3 {[%clk 0:04:54.2]} 3... Nf6 {[%clk 0:04:52.6]}
4. e5 {[%clk 0:04:52.2]} 4... Ne4 {[%clk 0:04:51.7]} 5. Nxe4 {[%clk 0:04:50.8]}
5... dxe4 {[%clk 0:04:50.5]} 6. c3 {[%clk 0:04:45.6]} 6... e6 {[%clk 0:04:46.8]}
7. g3 {[%clk 0:04:41.3]} 7... Be7 {[%clk 0:04:43.5]} 8. Bg2 {[%clk 0:04:40.3]}
8... O-O {[%clk 0:04:28.4]} 9. Bxe4 {[%clk 0:04:38.8]} 9... f6 {[%clk
0:04:26.1]} 10. Qh5 {[%clk 0:04:20.6]} 10... h6 {[%clk 0:04:20.2]} 11. Nf3
{[%clk 0:04:13.1]} 11... f5 {[%clk 0:04:17.3]} 12. Bc2 {[%clk 0:04:06.9]} 12...
b6 {[%clk 0:04:10]} 13. Qg6 {[%clk 0:03:58.7]} 13... Ba6 {[%clk 0:03:55.9]} 14.
Bxh6 {[%clk 0:03:55.1]} 14... Rf7 {[%clk 0:03:48.6]} 15. Bb3 {[%clk 0:03:51.2]}
15... Qd7 {[%clk 0:03:24.4]} 16. Bxe6 {[%clk 0:03:48]} 16... Qd8 {[%clk
0:03:10.1]} 17. Qxg7# {[%clk 0:03:46.8]} 1-0

[Event "Live Chess"]
[Site "Chess.com"]
[Date "2023.05.21"]
[Round "-"]
[White "YrrriKharkiv"]
[Black "HadesLearmonth"]
[Result "1-0"]
[WhiteElo "2058"]
[BlackElo "1208"]
[TimeControl "300"]
[EndTime "2:02:33 PDT"]
[Termination "YrrriKharkiv won by resignation"]

1. d4 {[%clk 0:04:58.1]} 1... d5 {[%clk 0:04:58.3]} 2. c4 {[%clk 0:04:57.5]}
2... e6 {[%clk 0:04:56.3]} 3. Nc3 {[%clk 0:04:55.8]} 3... Nf6 {[%clk 0:04:55]}
4. g3 {[%clk 0:04:53.2]} 4... Be7 {[%clk 0:04:52.1]} 5. Bg2 {[%clk 0:04:52.7]}
5... O-O {[%clk 0:04:51.2]} 6. Nf3 {[%clk 0:04:51.5]} 6... Nc6 {[%clk
0:04:48.9]} 7. cxd5 {[%clk 0:04:46.2]} 7... exd5 {[%clk 0:04:47.4]} 8. O-O
{[%clk 0:04:46]} 8... Bg4 {[%clk 0:04:44.7]} 9. Qa4 {[%clk 0:04:43]} 9... Ne4
{[%clk 0:04:38]} 10. Rd1 {[%clk 0:04:32.3]} 10... Bb4 {[%clk 0:04:29.3]} 11. Qb3
{[%clk 0:04:18.1]} 11... Qf6 {[%clk 0:04:23.2]} 12. Nxd5 {[%clk 0:04:10.4]}
12... Qd6 {[%clk 0:04:15]} 13. Nxb4 {[%clk 0:03:57.2]} 13... Nxb4 {[%clk
0:04:13.1]} 14. Bf4 {[%clk 0:03:48.2]} 14... Qb6 {[%clk 0:04:04.2]} 15. a3
{[%clk 0:03:39.3]} 15... Nc6 {[%clk 0:03:56.8]} 16. Qxb6 {[%clk 0:03:32.5]}
16... cxb6 {[%clk 0:03:55.4]} 17. d5 {[%clk 0:03:28.8]} 17... Na5 {[%clk
0:03:48.1]} 18. Nd4 {[%clk 0:03:20.3]} 18... Nc5 {[%clk 0:03:38.7]} 19. b4
{[%clk 0:03:16]} 19... Bxe2 {[%clk 0:03:34.9]} 20. Nxe2 {[%clk 0:03:12.1]} 20...
Nc4 {[%clk 0:03:31]} 21. bxc5 {[%clk 0:03:10.4]} 21... bxc5 {[%clk 0:03:30.9]}
22. Rdc1 {[%clk 0:03:07]} 22... Nb6 {[%clk 0:03:25.5]} 23. Rxc5 {[%clk 0:03:05]}
23... Rae8 {[%clk 0:03:24.4]} 24. Be3 {[%clk 0:03:02.1]} 24... Nd7 {[%clk
0:03:21.5]} 25. Rc7 {[%clk 0:03:01]} 25... Ne5 {[%clk 0:03:13.7]} 26. Bc5 {[%clk
0:02:57.8]} 1-0

[Event "Live Chess"]
[Site "Chess.com"]
[Date "2023.05.21"]
[Round "-"]
[White "mliszewski"]
[Black "LiamBellwood"]
[Result "1-0"]
[WhiteElo "1840"]
[BlackElo "1980"]
[TimeControl "300"]
[EndTime "2:02:35 PDT"]
[Termination "mliszewski won by resignation"]

1. d4 {[%clk 0:04:59.6]} 1... e6 {[%clk 0:04:58.9]} 2. Nf3 {[%clk 0:04:57.9]}
2... f6 {[%clk 0:04:58]} 3. Bf4 {[%clk 0:04:56.6]} 3... f5 {[%clk 0:04:56.6]} 4.
e3 {[%clk 0:04:55.2]} 4... Nf6 {[%clk 0:04:56.2]} 5. Bd3 {[%clk 0:04:53.5]} 5...
b6 {[%clk 0:04:53.3]} 6. c3 {[%clk 0:04:51.8]} 6... Bb7 {[%clk 0:04:52.8]} 7.
Nbd2 {[%clk 0:04:50.7]} 7... Bd6 {[%clk 0:04:52.5]} 8. Bg3 {[%clk 0:04:48.6]}
8... O-O {[%clk 0:04:50.3]} 9. O-O {[%clk 0:04:43.7]} 9... Bxg3 {[%clk
0:04:49.4]} 10. hxg3 {[%clk 0:04:42.8]} 10... Ne4 {[%clk 0:04:49.3]} 11. Bxe4
{[%clk 0:04:35.8]} 11... fxe4 {[%clk 0:04:49.2]} 12. Ne5 {[%clk 0:04:31.9]}
12... d6 {[%clk 0:04:43.7]} 13. Nec4 {[%clk 0:04:30]} 13... d5 {[%clk 0:04:43]}
14. Ne5 {[%clk 0:04:28.6]} 14... Nd7 {[%clk 0:04:42.6]} 15. f4 {[%clk
0:04:26.1]} 15... c5 {[%clk 0:04:32.7]} 16. Qg4 {[%clk 0:04:13.3]} 16... Qe7
{[%clk 0:04:22.8]} 17. Kf2 {[%clk 0:04:10.4]} 17... Nxe5 {[%clk 0:04:16.4]} 18.
dxe5 {[%clk 0:04:09.4]} 18... Ba6 {[%clk 0:04:13.9]} 19. Rh1 {[%clk 0:04:07.8]}
19... g6 {[%clk 0:04:01.5]} 20. Rh6 {[%clk 0:04:02.4]} 20... Rf7 {[%clk
0:03:53.7]} 21. Rah1 {[%clk 0:04:01.1]} 21... Raf8 {[%clk 0:03:50]} 22. Qxg6+
{[%clk 0:03:40.2]} 22... hxg6 {[%clk 0:03:46.9]} 23. Rh8+ {[%clk 0:03:39.1]} 1-0

[Event "Live Chess"]
[Site "Chess.com"]
[Date "2023.05.21"]
[Round "-"]
[White "SteveValentine83"]
[Black "KeithArkell"]
[Result "0-1"]
[WhiteElo "1533"]
[BlackElo "2508"]
[TimeControl "300"]
[EndTime "2:02:40 PDT"]
[Termination "KeithArkell won by resignation"]

1. e4 {[%clk 0:04:58.6]} 1... c6 {[%clk 0:04:59.3]} 2. d4 {[%clk 0:04:57.4]}
2... d5 {[%clk 0:04:59.2]} 3. e5 {[%clk 0:04:56.6]} 3... c5 {[%clk 0:04:58.3]}
4. dxc5 {[%clk 0:04:55.7]} 4... Nc6 {[%clk 0:04:57]} 5. f4 {[%clk 0:04:54.8]}
5... e6 {[%clk 0:04:55.3]} 6. Nf3 {[%clk 0:04:50.1]} 6... Bxc5 {[%clk
0:04:53.6]} 7. Bd3 {[%clk 0:04:43.1]} 7... Nge7 {[%clk 0:04:52.4]} 8. Nc3 {[%clk
0:04:35.7]} 8... a6 {[%clk 0:04:50.4]} 9. Qe2 {[%clk 0:04:29.9]} 9... b5 {[%clk
0:04:49.4]} 10. Bd2 {[%clk 0:04:14.5]} 10... Qb6 {[%clk 0:04:46.9]} 11. Nd1
{[%clk 0:03:56]} 11... Nd4 {[%clk 0:04:44.7]} 12. Qf1 {[%clk 0:03:50.5]} 12...
Nxf3+ {[%clk 0:04:42.2]} 13. Qxf3 {[%clk 0:03:47.7]} 13... b4 {[%clk 0:04:41.6]}
14. Be3 {[%clk 0:03:42.4]} 14... a5 {[%clk 0:04:40]} 15. Bxc5 {[%clk 0:03:40.7]}
15... Qxc5 {[%clk 0:04:39.3]} 16. Qe3 {[%clk 0:03:38.1]} 16... Qxe3+ {[%clk
0:04:38.5]} 17. Nxe3 {[%clk 0:03:37.5]} 17... Ba6 {[%clk 0:04:38.2]} 18. Kf2
{[%clk 0:03:21.2]} 18... h5 {[%clk 0:04:32.4]} 19. Rac1 {[%clk 0:03:15.4]} 19...
g6 {[%clk 0:04:30.6]} 20. Bxa6 {[%clk 0:03:11.3]} 20... Rxa6 {[%clk 0:04:30.5]}
21. c3 {[%clk 0:03:10.5]} 21... O-O {[%clk 0:04:27.7]} 22. cxb4 {[%clk
0:02:57.1]} 22... axb4 {[%clk 0:04:27.6]} 23. Rc7 {[%clk 0:02:56.4]} 23... Nf5
{[%clk 0:04:25.9]} 24. Nxf5 {[%clk 0:02:50.9]} 24... gxf5 {[%clk 0:04:25.1]} 25.
Rb7 {[%clk 0:02:50.4]} 25... Rxa2 {[%clk 0:04:22.8]} 26. Rxb4 {[%clk 0:02:49.6]}
26... Rc8 {[%clk 0:04:22]} 27. Rd1 {[%clk 0:02:30.5]} 27... Rc2+ {[%clk
0:04:19]} 28. Kf3 {[%clk 0:02:27.8]} 28... h4 {[%clk 0:04:16.5]} 29. Rd3 {[%clk
0:02:16]} 29... Rcxb2 {[%clk 0:04:12]} 30. Rxb2 {[%clk 0:02:14.6]} 30... Rxb2
{[%clk 0:04:10.9]} 31. h3 {[%clk 0:02:06.8]} 31... Kg7 {[%clk 0:04:09.3]} 32.
Ra3 {[%clk 0:01:55.2]} 32... Kg6 {[%clk 0:04:06.7]} 33. Rc3 {[%clk 0:01:51.4]}
33... Rb1 {[%clk 0:04:04.5]} 34. Kf2 {[%clk 0:01:45.2]} 34... Ra1 {[%clk
0:04:03.2]} 35. Rb3 {[%clk 0:01:41]} 35... Ra2+ {[%clk 0:04:01.2]} 36. Kf3
{[%clk 0:01:39.9]} 36... Ra7 {[%clk 0:04:01.1]} 37. Rd3 {[%clk 0:01:36.6]} 37...
Ra2 {[%clk 0:03:58.9]} 38. Rb3 {[%clk 0:01:34.9]} 38... Ra1 {[%clk 0:03:57.8]}
39. Kf2 {[%clk 0:01:33.3]} 39... Rc1 {[%clk 0:03:56.9]} 40. Rd3 {[%clk
0:01:27.3]} 40... f6 {[%clk 0:03:54.9]} 41. exf6 {[%clk 0:01:00.3]} 41... Kxf6
{[%clk 0:03:54.8]} 42. Rb3 {[%clk 0:00:50.7]} 42... Rc2+ {[%clk 0:03:51.1]} 43.
Kf3 {[%clk 0:00:49.6]} 43... d4 {[%clk 0:03:38.2]} 44. Rd3 {[%clk 0:00:45.4]}
44... Rc3 {[%clk 0:03:36.6]} 45. Ke2 {[%clk 0:00:42.7]} 45... e5 {[%clk
0:03:35.6]} 46. fxe5+ {[%clk 0:00:30.7]} 46... Kxe5 {[%clk 0:03:35.5]} 47. Kd2
{[%clk 0:00:26.4]} 47... Rxd3+ {[%clk 0:03:27.8]} 48. Kxd3 {[%clk 0:00:25.6]}
48... Kf4 {[%clk 0:03:27.2]} 0-1